fUST/lending_fUST_20250924
["ID","MTS","AMOUNT","RATE_DAILY","PERIOD"]
[387231136,1758663034399,-480.0,0.00019452,2]
[387231138,1758663034408,-480.0,0.00019452,2]
[387231139,1758663034417,-480.0,0.00019452,2]
[387231141,1758663034427,-497.17789689,0.00019452,2]
[387231143,1758663034436,-480.0,0.00019452,2]
[387231145,1758663034446,-480.0,0.00019452,2]
[387231147,1758663034455,-480.0,0.00019452,2]
[387231148,1758663034465,-480.0,0.00019452,2]
[387231150,1758663034474,-480.0,0.00019452,2]
[387231152,1758663034483,-480.0,0.00019452,2]
[387231154,1758663034493,-480.0,0.00019452,2]
[387231156,1758663034502,-167.32543527,0.00019452,2]
[387231157,1758663034511,-480.0,0.00019452,2]
[387231159,1758663034520,-480.0,0.00019452,2]
[387231161,1758663034530,-480.0,0.00019452,2]
[387231163,1758663034539,-480.0,0.00019452,2]
[387231165,1758663034549,-480.0,0.00019452,2]
[387231167,1758663034558,-480.0,0.00019452,2]
[387231168,1758663034567,-480.0,0.00019452,2]
[387231170,1758663034577,-480.0,0.00019452,2]
[387231172,1758663034586,-480.0,0.00019452,2]
[387231174,1758663034595,-480.0,0.00019452,2]
[387231176,1758663034604,-480.0,0.00019452,2]
[387231177,1758663034613,-480.0,0.00019452,2]
[387231179,1758663034622,-480.0,0.00019452,2]
[387231181,1758663034632,-480.0,0.00019452,2]
[387231183,1758663034642,-480.0,0.00019452,2]
[387231185,1758663034651,-480.0,0.00019452,2]
[387231187,1758663034662,-480.0,0.00019452,2]
[387231188,1758663034672,-480.0,0.00019452,2]
[387231190,1758663034682,-480.0,0.00019452,2]
[387231192,1758663034691,-480.0,0.00019452,2]
[387231194,1758663034701,-480.0,0.00019452,2]
[387231196,1758663034710,-480.0,0.00019452,2]
[387231197,1758663034719,-480.0,0.00019452,2]
[387231199,1758663034729,-382.13656927,0.00019452,2]
[387231201,1758663034738,-285.61335318,0.00019452,2]
[387231203,1758663034747,-480.0,0.00019452,2]
[387231205,1758663034757,-577.02,0.00019452,2]
[387231206,1758663034766,-480.0,0.00019452,2]
[387231208,1758663034775,-480.0,0.00019452,2]
[387231210,1758663034785,-480.0,0.00019452,2]
[387231212,1758663034794,-480.0,0.00019452,2]
[387231213,1758663034804,-480.0,0.00019452,2]
[387231215,1758663034813,-480.0,0.00019452,2]
[387231217,1758663034822,-480.0,0.00019452,2]
[387231219,1758663034832,-491.18,0.00019452,2]
[387231221,1758663034841,-480.0,0.00019452,2]
[387231222,1758663034851,-480.0,0.00019452,2]
[387231224,1758663034860,-480.0,0.00019452,2]
[387231226,1758663034869,-480.0,0.00019452,2]
[387231228,1758663034879,-480.0,0.00019452,2]
[387231229,1758663034888,-480.0,0.00019452,2]
[387231231,1758663034898,-480.0,0.00019452,2]
[387231233,1758663034907,-480.0,0.00019452,2]
[387231235,1758663034917,-480.0,0.00019452,2]
[387231236,1758663034927,-480.0,0.00019452,2]
[387231238,1758663034936,-480.0,0.00019452,2]
[387231240,1758663034946,-480.0,0.00019452,2]
[387231242,1758663034955,-480.0,0.00019452,2]
[387231244,1758663034964,-480.0,0.00019452,2]
[387231245,1758663034974,-480.0,0.00019452,2]
[387231247,1758663034986,-480.0,0.00019452,2]
[387231249,1758663034995,-480.0,0.00019452,2]
[387231251,1758663035005,-480.0,0.00019452,2]
[387231253,1758663035014,-480.0,0.00019452,2]
[387231255,1758663035023,-480.0,0.00019452,2]
[387231256,1758663035033,-480.0,0.00019452,2]
[387231258,1758663035042,-480.0,0.00019452,2]
[387231260,1758663035051,-561.99,0.00019452,2]
[387231262,1758663035060,-500.0,0.00019473,2]
[387231264,1758663035070,-500.0,0.00019473,2]
[387231266,1758663035079,-543.03333736,0.00019473,2]
[387231267,1758663035089,-500.0,0.00019473,2]
[387231269,1758663035098,-480.0,0.00019724,2]
[387231271,1758663035108,-480.0,0.00019724,2]
[387231273,1758663035117,-480.0,0.00019724,2]
[387231275,1758663035127,-480.0,0.00019725,2]
[387231277,1758663035138,-677.71,0.00019725,2]
[387231279,1758663035147,-480.0,0.00019725,2]
[387231280,1758663035156,-480.0,0.00019725,2]
[387231282,1758663035165,-480.0,0.00019725,2]
[387231284,1758663035175,-480.0,0.00019725,2]
[387231286,1758663035185,-229.32,0.00019726,2]
[387231288,1758663035194,-533.78,0.00019726,2]
[387231290,1758663035203,-480.0,0.00019726,2]
[387231292,1758663035213,-480.0,0.00019726,2]
[387231293,1758663035223,-480.0,0.00019726,2]
[387231295,1758663035232,-480.0,0.00019726,2]
[387231297,1758663035241,-480.0,0.00019726,2]
[387231299,1758663035250,-480.0,0.00019726,2]
[387231300,1758663035260,-204.22262354,0.00019726,2]
[387231302,1758663035270,-480.0,0.00019726,2]
[387231304,1758663035281,-399.74,0.00019726,2]
[387231306,1758663035291,-480.0,0.00019726,2]
[387231308,1758663035301,-480.0,0.00019726,2]
[387231309,1758663035311,-480.0,0.00019726,2]
[387231310,1758663035320,-324.28086876,0.00019726,2]
[387231311,1758663035330,-480.0,0.00019726,2]
[387231313,1758663035339,-480.0,0.00019726,2]
[387231315,1758663035349,-480.0,0.00019726,2]
[387231317,1758663035358,-480.0,0.00019726,2]
[387231319,1758663035368,-480.0,0.00019726,2]
[387231321,1758663035377,-210.52,0.00019726,2]
[387231322,1758663035387,-480.0,0.00019726,2]
[387231324,1758663035396,-480.0,0.00019726,2]
[387231326,1758663035406,-480.0,0.00019726,2]
[387231328,1758663035415,-480.0,0.00019726,2]
[387231330,1758663035425,-480.0,0.00019726,2]
[387231332,1758663035434,-181.48,0.00019726,2]
[387231333,1758663035443,-500.0,0.00019898,2]
[387231335,1758663035452,-2363.21851329,0.000199,2]
[387231337,1758663035462,-480.0,0.00019998,2]
[387231339,1758663035471,-480.0,0.00019998,2]
[387231341,1758663035480,-480.0,0.00019998,2]
[387231343,1758663035490,-677.71,0.00019999,2]
[387231345,1758663035499,-528.06,0.00019999,2]
[387231347,1758663035509,-480.0,0.00019999,2]
[387231348,1758663035518,-480.0,0.0002,2]
[387231350,1758663035528,-480.0,0.0002,2]
[387231352,1758663035537,-480.0,0.0002,2]
[387231354,1758663035547,-480.0,0.0002,2]
[387231356,1758663035556,-480.0,0.0002,2]
[387231358,1758663035566,-480.0,0.0002,2]
[387231360,1758663035575,-480.0,0.0002,2]
[387231362,1758663035585,-480.0,0.0002,2]
[387231363,1758663035595,-418.1,0.0002,2]
[387231365,1758663035604,-480.0,0.0002,2]
[387231367,1758663035613,-590.72,0.0002,2]
[387231369,1758663035622,-480.0,0.0002,2]
[387231371,1758663035632,-480.0,0.0002,2]
[387231373,1758663035642,-480.0,0.0002,2]
[387231375,1758663035650,-417.15472785,0.00020258,2]
[387231376,1758663035660,-160.0,0.00020258,2]
[387231378,1758663035670,-199.5,0.00020263,3]
[387231380,1758663035679,-598.55,0.00020263,3]
[387231382,1758663035688,-480.0,0.00020272,2]
[387231384,1758663035697,-480.0,0.00020272,2]
[387231386,1758663035706,-677.71,0.00020273,2]
[387231388,1758663035715,-480.0,0.00020273,2]
[387231389,1758663035725,-480.0,0.00020273,2]
[387231391,1758663035734,-480.0,0.00020273,2]
[387231393,1758663035743,-480.0,0.00020273,2]
[387231395,1758663035753,-160.86,0.00020273,2]
[387231397,1758663035762,-480.0,0.00020273,2]
[387231399,1758663035771,-480.0,0.00020273,2]
[387231400,1758663035781,-388.2,0.00020273,2]
[387231402,1758663035790,-480.0,0.00020273,2]
[387231404,1758663035799,-480.0,0.00020273,2]
[387231406,1758663035808,-399.16,0.00020273,2]
[387231408,1758663035818,-480.0,0.00020273,2]
[387231410,1758663035827,-435.94,0.00020273,2]
[387231412,1758663035836,-1966.99,0.00020422,2]
[387231413,1758663035845,-480.0,0.00020546,2]
[387231415,1758663035854,-677.71,0.00020547,2]
[387231417,1758663035863,-480.0,0.00020547,2]
[387231419,1758663035872,-480.0,0.00020547,2]
[387231421,1758663035881,-480.0,0.00020547,2]
[387231423,1758663035891,-466.28,0.00020547,2]
[387231424,1758663035900,-480.0,0.00020547,2]
[387231426,1758663035909,-480.0,0.00020547,2]
[387231428,1758663035918,-480.0,0.00020547,2]
[387231430,1758663035927,-480.0,0.00020547,2]
[387231432,1758663035936,-480.0,0.00020547,2]
[387231434,1758663035946,-233.58652103,0.0002058,2]
[387231436,1758663035955,-160.0,0.0002058,2]
[387231437,1758663035964,-410.0,0.00020626,2]
[387231439,1758663035973,-500.0,0.0002082,2]
[387231441,1758663035989,-305.58,0.0002082,2]
[387231443,1758663035998,-677.71,0.00020821,2]
[387231445,1758663036007,-480.0,0.00020821,2]
[387231447,1758663036016,-284.8690651,0.00020821,2]
[387231449,1758663036025,-480.0,0.00020821,2]
[387231450,1758663036035,-452.46,0.00020821,2]
[387231452,1758663036043,-480.0,0.00020821,2]
[387231454,1758663036053,-378.66,0.00020821,2]
[387231456,1758663036063,-480.0,0.00020821,2]
[387231458,1758663036072,-480.0,0.00020821,2]
[387231460,1758663036081,-160.0,0.00020917,2]
[387231461,1758663036090,-2363.21851307,0.00020972,2]
[387231463,1758663036099,-677.71,0.00021095,2]
[387231465,1758663036108,-480.0,0.00021095,2]
[387231467,1758663036117,-480.0,0.00021095,2]
[387231469,1758663036125,-480.0,0.00021095,2]
[387231470,1758663036134,-480.0,0.00021095,2]
[387231472,1758663036144,-480.0,0.00021095,2]
[387231474,1758663036153,-677.71,0.00021369,2]
[387231476,1758663036162,-480.0,0.00021369,2]
[387231478,1758663036172,-480.0,0.00021369,2]
[387231479,1758663036180,-480.0,0.00021369,2]
[387231489,1758663036270,-459.82,0.00021369,2]
[387231490,1758663036280,-545.22,0.00021369,2]
[387231492,1758663036290,-260.0,0.00021465,2]
[387231494,1758663036300,-399.0,0.00021633,3]
[387231496,1758663036308,-677.71,0.00021643,2]
[387231497,1758663036317,-480.0,0.00021643,2]
[387231498,1758663036326,-480.0,0.00021643,2]
[387231499,1758663036335,-273.91,0.00021643,2]
[387231500,1758663036345,-677.71,0.00021917,2]
[387231501,1758663036354,-480.0,0.00021917,2]
[387231502,1758663036363,-480.0,0.00021917,2]
[387231503,1758663036372,-360.0,0.00022013,2]
[387231504,1758663036381,-480.0,0.00022043,2]
[387231505,1758663036390,-495.892349,0.00022043,2]
[387231506,1758663036398,-480.0,0.00022043,2]
[387231507,1758663036407,-480.0,0.00022043,2]
[387231508,1758663036416,-480.0,0.00022043,2]
[387231509,1758663036425,-480.0,0.00022043,2]
[387231510,1758663036434,-480.0,0.00022043,2]
[387231511,1758663036443,-480.0,0.00022043,2]
[387231512,1758663036452,-480.0,0.00022043,2]
[387231513,1758663036461,-480.0,0.00022043,2]
[387231514,1758663036470,-480.0,0.00022043,2]
[387231515,1758663036479,-480.0,0.00022043,2]
[387231516,1758663036488,-480.0,0.00022043,2]
[387231517,1758663036497,-480.0,0.00022043,2]
[387231518,1758663036506,-480.0,0.00022043,2]
[387231519,1758663036515,-480.0,0.00022043,2]
[387231520,1758663036524,-480.0,0.00022043,2]
[387231521,1758663036533,-480.0,0.00022043,2]
[387231522,1758663036541,-240.48412745,0.00022043,2]
[387231523,1758663036550,-480.0,0.00022043,2]
[387231524,1758663036559,-480.0,0.00022043,2]
[387231525,1758663036568,-480.0,0.00022043,2]
[387231526,1758663036577,-459.4226814,0.00022043,2]
[387231527,1758663036586,-480.0,0.00022043,2]
[387231528,1758663036595,-480.0,0.00022043,2]
[387231529,1758663036605,-480.0,0.00022043,2]
[387231530,1758663036614,-480.0,0.00022043,2]
[387231531,1758663036623,-480.0,0.00022043,2]
[387231532,1758663036631,-480.0,0.00022043,2]
[387231533,1758663036641,-480.0,0.00022043,2]
[387231534,1758663036650,-1000.0,0.00022043,2]
[387231535,1758663036659,-480.0,0.00022043,2]
[387231536,1758663036668,-480.0,0.00022043,2]
[387231537,1758663036677,-480.0,0.00022043,2]
[387231538,1758663036686,-500.0,0.00022043,2]
[387231539,1758663036694,-500.0,0.00022043,2]
[387231540,1758663036704,-500.0,0.00022043,2]
[387231541,1758663036713,-500.0,0.00022043,2]
[387231542,1758663036722,-500.0,0.00022043,2]
[387231543,1758663036731,-500.0,0.00022043,2]
[387231544,1758663036740,-480.0,0.00022043,2]
[387231545,1758663036750,-480.0,0.00022043,2]
[387231546,1758663036759,-480.0,0.00022043,2]
[387231547,1758663036768,-480.0,0.00022043,2]
[387231548,1758663036778,-480.0,0.00022043,2]
[387231549,1758663036787,-480.0,0.00022043,2]
[387231550,1758663036796,-480.0,0.00022043,2]
[387231551,1758663036806,-2363.21851307,0.00022044,2]
[387231552,1758663036815,-677.71,0.00022191,2]
[387231553,1758663036825,-480.0,0.00022191,2]
[387231554,1758663036834,-480.0,0.00022191,2]
[387231555,1758663036843,-3933.98,0.00022277,2]
[387231556,1758663036853,-480.0,0.00022317,2]
[387231557,1758663036862,-465.07036988,0.00022317,2]
[387231558,1758663036871,-480.0,0.00022317,2]
[387231559,1758663036880,-480.0,0.00022317,2]
[387231560,1758663036889,-480.0,0.00022317,2]
[387231561,1758663036898,-186.8897468,0.00022317,2]
[387231562,1758663036908,-480.0,0.00022317,2]
[387231563,1758663036917,-480.0,0.00022317,2]
[387231564,1758663036926,-480.0,0.00022317,2]
[387231565,1758663036935,-480.0,0.00022317,2]
[387231566,1758663036945,-480.0,0.00022317,2]
[387231567,1758663036954,-480.0,0.00022317,2]
[387231568,1758663036963,-480.0,0.00022317,2]
[387231569,1758663036973,-480.0,0.00022317,2]
[387231570,1758663036985,-480.0,0.00022317,2]
[387231571,1758663036995,-480.0,0.00022317,2]
[387231572,1758663037003,-480.0,0.00022317,2]
[387231573,1758663037012,-480.0,0.00022317,2]
[387231574,1758663037021,-480.0,0.00022317,2]
[387231575,1758663037031,-480.0,0.00022317,2]
[387231576,1758663037040,-480.0,0.00022317,2]
[387231577,1758663037050,-500.0,0.0002236,2]
[387231578,1758663037059,-500.0,0.00022367,2]
[387231579,1758663037068,-677.71,0.00022465,2]
[387231580,1758663037078,-480.0,0.00022465,2]
[387231581,1758663037087,-480.0,0.00022465,2]
[387231582,1758663037096,-504.07436454,0.00022485,2]
[387231583,1758663037106,-460.0,0.00022561,2]
[387231584,1758663037115,-480.0,0.00022591,2]
[387231585,1758663037125,-480.0,0.00022591,2]
[387231586,1758663037135,-677.71,0.00022739,2]
[387231587,1758663037144,-150.64,0.00022739,2]
[387231588,1758663037154,-480.0,0.00022739,2]
[387231589,1758663037164,-480.0,0.00022865,2]
[387231590,1758663037173,-203.04094227,0.00022865,2]
[387231591,1758663037182,-1000.0,0.00022915,2]
[387231592,1758663037192,-160.0,0.00023,2]
[387231593,1758663037201,-677.71,0.00023013,2]
[387231594,1758663037211,-480.0,0.00023013,2]
[387231595,1758663037220,-560.0,0.00023108,2]
[387231596,1758663037229,-2363.21851307,0.00023116,2]
[387231598,1758663037238,-480.0,0.00023139,2]
[387231599,1758663037247,-677.71,0.00023287,2]
[387231600,1758663037257,-1500.29,0.00023287,2]
[387231601,1758663037266,-480.0,0.00023287,2]
[387231603,1758663037275,-1000.0,0.00023377,5]
[387231604,1758663037285,-153.0,0.000234,2]
[387231606,1758663037294,-153.0,0.000234,2]
[387231607,1758663037304,-153.0,0.000234,2]
[387231608,1758663037312,-153.0,0.000234,2]
[387231609,1758663037321,-153.0,0.000234,2]
[387231611,1758663037331,-153.0,0.000234,2]
[387231612,1758663037339,-153.0,0.000234,2]
[387231614,1758663037351,-480.0,0.00023413,2]
[387231617,1758663037363,-1500.0,0.00023463,2]
[387231619,1758663037374,-500.0,0.0002356,2]
[387231621,1758663037387,-677.71,0.00023561,2]
[387231623,1758663037398,-480.0,0.00023561,2]
[387231625,1758663037410,-286.761,0.00023587,4]
[387231627,1758663037420,-410.0,0.00023626,2]
[387231629,1758663037431,-660.0,0.00023656,2]
[387231632,1758663037442,-480.0,0.00023687,2]
[387231634,1758663037454,-13667.20198352,0.000238,2]
[387231636,1758663037465,-677.71,0.00023835,2]
[387231638,1758663037477,-480.0,0.00023835,2]
[387231641,1758663037488,-480.0,0.00023961,2]
[387231643,1758663037499,-2000.0,0.00024011,2]
[387231645,1758663037511,-677.71,0.00024109,2]
[387231647,1758663037522,-480.0,0.00024109,2]
[387231649,1758663037533,-5900.97,0.00024123,2]
[387231652,1758663037544,-2363.21851307,0.00024187,2]
[387231654,1758663037555,-760.0,0.00024204,2]
[387231656,1758663037568,-268.24519386,0.00024235,2]
[387231658,1758663037579,-677.71,0.00024383,2]
[387231660,1758663037590,-480.0,0.00024383,2]
[387231663,1758663037601,-500.0,0.00024446,2]
[387231665,1758663037612,-2500.0,0.00024558,2]
[387231667,1758663037624,-401.2,0.000246,2]
[387231669,1758663037635,-500.0,0.00024649,2]
[387231671,1758663037645,-500.0,0.00024656,2]
[387231674,1758663037657,-677.71,0.00024657,2]
[387231676,1758663037669,-480.0,0.00024657,2]
[387231678,1758663037679,-380.0,0.00024658,2]
[387231680,1758663037690,-151.0,0.00024658,2]
[387231682,1758663037701,-151.0,0.00024658,2]
[387231685,1758663037714,-524.0,0.00024658,2]
[387231687,1758663037724,-151.0,0.00024658,2]
[387231689,1758663037734,-151.0,0.00024658,2]
[387231691,1758663037743,-151.0,0.00024658,2]
[387231693,1758663037755,-151.0,0.00024658,2]
[387231695,1758663037765,-154.69557485,0.00024658,2]
[387231697,1758663037776,-160.0,0.00024748,2]
[387231699,1758663037787,-860.0,0.00024752,2]
[387231701,1758663037798,-500.0,0.00024773,2]
[387231704,1758663037809,-500.0,0.00024799,2]
[387231706,1758663037821,-2000.0,0.000248,2]
[387231708,1758663037832,-2414.7096797,0.000248,2]
[387231710,1758663037843,-482.94193594,0.00024807,2]
[387231712,1758663037855,-153.7242213,0.00024817,2]
[387231715,1758663037866,-3110.1686467,0.00024817,2]
[387231718,1758663037878,-1231.24454692,0.00024831,2]
[387231720,1758663037889,-150.0,0.00024873,2]
[387231722,1758663037901,-6761.18710316,0.0002489,2]
[387231724,1758663037911,-500.0,0.00024898,2]
[387231726,1758663037921,-433.84,0.00024898,2]
[387231729,1758663037931,-153.36882226,0.00024899,2]
[387231731,1758663037941,-480.0,0.00024899,2]
[387231733,1758663037951,-480.0,0.00024899,2]
[387231735,1758663037961,-480.0,0.00024899,2]
[387231737,1758663037973,-480.0,0.00024899,2]
[387231739,1758663037989,-480.0,0.00024899,2]
[387231742,1758663038001,-500.0,0.00024899,2]
[387231744,1758663038012,-500.0,0.00024899,2]
[387231746,1758663038023,-500.0,0.00024899,2]
[387231748,1758663038034,-500.0,0.00024899,2]
[387231750,1758663038044,-500.0,0.00024899,2]
[387231752,1758663038056,-500.0,0.00024899,2]
[387231754,1758663038068,-500.0,0.00024899,2]
[387231757,1758663038078,-500.0,0.00024899,2]
[387231759,1758663038091,-435.16,0.00024899,2]
[387231761,1758663038104,-480.0,0.00024899,2]
[387231763,1758663038115,-489.54718786,0.00024899,2]
[387231765,1758663038127,-352675.68426175,0.000249,2]
[387231768,1758663038148,-158555.75167719,0.000249,2]
[387231770,1758663038161,-554.64307701,0.000249,2]
[387231789,1758663038339,-455.18249544,0.00019178,2]
[387231791,1758663038353,-33.85959157,0.00019178,2]
[387231793,1758663038364,-480.0,0.00022043,2]
[387231795,1758663038375,-1455.01362958,0.000249,2]
[387231798,1758663038388,-5554.2,0.000249,2]
[387231800,1758663038402,-25841.03083978,0.000249,2]
[387231802,1758663038414,-33128.90787973,0.000249,2]
[387231805,1758663038429,-13672.37783676,0.000249,2]
[387231807,1758663038441,-559.50148452,0.000249,2]
[387232004,1758663040428,-480.0,0.00019178,2]
[387232006,1758663040437,-1437.78,0.00023287,2]
[387232008,1758663040447,-4672.41503527,0.000249,2]
[387232010,1758663040459,-14200.0,0.000249,2]
[387232012,1758663040470,-82661.38415514,0.000249,2]
[387232148,1758663041725,500.0,0.000239,120]
[387232267,1758663042842,500.0,0.000239,120]
[387232314,1758663043450,-480.0,0.00022043,2]
[387232316,1758663043460,-4884.66538427,0.000249,2]
[387232318,1758663043470,-151.0,0.000249,7]
[387232320,1758663043479,-677.71,0.00024931,2]
[387232322,1758663043489,-480.0,0.00024931,2]
[387232324,1758663043498,-151.0,0.00024932,2]
[387232326,1758663043507,-524.0,0.00024932,2]
[387232328,1758663043517,-151.0,0.00024932,2]
[387232330,1758663043530,-500.0,0.00024942,2]
[387232332,1758663043539,-500.0,0.00024942,2]
[387232334,1758663043548,-500.0,0.00024969,2]
[387232336,1758663043557,-500.0,0.00024969,2]
[387232337,1758663043567,-500.0,0.00024969,2]
[387232338,1758663043576,-500.0,0.00024969,2]
[387232339,1758663043585,-150.0,0.00024973,2]
[387232341,1758663043594,-1006.995649,0.0002498,5]
[387232343,1758663043603,-1231.24454692,0.00024995,2]
[387232347,1758663043612,-1071.71713484,0.00025,2]
[387232349,1758663043622,-209.24090246,0.00025,2]
[387232352,1758663043631,-5621.95547004,0.00025,2]
[387232353,1758663043640,-1500.0,0.00025,5]
[387232354,1758663043649,-99000.0,0.00025,15]
[387232355,1758663043658,-162.0,0.00025,2]
[387232356,1758663043667,-1000.0,0.00025,2]
[387232357,1758663043676,-1628.06,0.00025,7]
[387232358,1758663043686,-2001.39,0.00025,3]
[387232359,1758663043695,-193.15996042,0.00025,2]
[387232360,1758663043705,-523.89314111,0.00025,2]
[387232361,1758663043714,-10731.66131455,0.00025,3]
[387232362,1758663043723,-1013.5,0.00025,5]
[387232363,1758663043731,-233.58652103,0.00025,3]
[387232364,1758663043740,-154.12602254,0.00025,2]
[387232365,1758663043749,-17681.63150003,0.00025,2]
[387232366,1758663043759,-2640.50107622,0.00025,2]
[387232367,1758663043767,-49088.98164687,0.00025,2]
[387232368,1758663043776,-10364.0,0.00025,2]
[387232369,1758663043786,-361.29075076,0.00025,2]
[387232370,1758663043796,-500.0,0.00025,2]
[387232371,1758663043805,-149.99999948,0.00025,2]
[387232372,1758663043814,-600.0,0.00025,2]
[387232373,1758663043824,-233.58652103,0.00025,3]
[387232374,1758663043833,-160.0,0.00025,3]
[387232375,1758663043842,-1000.0,0.00025,5]
[387232376,1758663043851,-152.458986,0.00025,7]
[387232377,1758663043860,-3000.0,0.00025106,2]
[387232378,1758663043869,-10376.49408812,0.00025159,2]
[387232379,1758663043879,-1231.24454692,0.00025159,2]
[387232380,1758663043888,-480.0,0.00025173,2]
[387232381,1758663043897,-480.0,0.00025173,2]
[387232382,1758663043906,-480.0,0.00025173,2]
[387232383,1758663043916,-168.0,0.00025191,2]
[387232384,1758663043925,-250.0,0.000252,7]
[387232385,1758663043934,-250.0,0.000252,7]
[387232386,1758663043943,-677.71,0.00025205,2]
[387232387,1758663043952,-161.64916967,0.00025205,2]
[387232388,1758663043961,-1437.78,0.00025205,4]
[387232389,1758663043970,-230.48159837,0.00025206,2]
[387232390,1758663043981,-524.0,0.00025206,2]
[387232391,1758663043991,-198.0,0.00025206,2]
[387232392,1758663043999,-68684.17650839,0.0002522,2]
[387232393,1758663044014,-3243.54024906,0.0002522,2]
[387232394,1758663044026,-9014.01720827,0.0002522,2]
[387232395,1758663044038,-870.42544747,0.0002522,2]
[387232396,1758663044077,243.23,0.000239,120]
[387232419,1758663046404,-480.0,0.00019178,2]
[387232420,1758663046414,-1996.5,0.0002499,10]
[387232421,1758663046423,-5427.5128222,0.0002522,2]
[387232422,1758663046435,-11198.81662439,0.0002522,2]
[387232423,1758663046462,-419.28094227,0.0002522,2]
[387232424,1758663046523,-3604.05715306,0.0002522,2]
[387232425,1758663046534,-538.66493114,0.0002522,2]
[387232426,1758663046545,-878.86,0.0002522,2]
[387232699,1758664232725,-300.0,0.00019177,2]
[387232700,1758664232735,-360.0,0.00019177,2]
[387232701,1758664232745,-480.0,0.00019178,2]
[387232702,1758664232754,-171.2180687,0.00019178,2]
[387232703,1758664232766,-308.7819313,0.00019178,2]
[387232704,1758664232775,-595.66755911,0.00019178,2]
[387232705,1758664232784,-55.54050959,0.00019178,2]
[387232706,1758664232796,-254.19004398,0.00019178,2]
[387232707,1758664232807,-161.51430855,0.00019178,2]
[387232708,1758664232816,-480.0,0.00019178,2]
[387232709,1758664232826,-480.0,0.00019178,2]
[387232710,1758664232835,-101.1985369,0.00019178,2]
[387232711,1758664232847,-258.22366975,0.00019178,2]
[387232712,1758664232859,-12.61431305,0.00019178,2]
[387232714,1758664232868,-483.55018425,0.00019178,2]
[387232716,1758664232877,-482.5846671,0.00019178,2]
[387232717,1758664232886,-303.39374237,0.00019178,2]
[387232720,1758664232898,-176.60625763,0.00019178,2]
[387232722,1758664232908,-480.0,0.00019178,2]
[387232723,1758664232918,-480.0,0.00019178,2]
[387232726,1758664232927,-480.0,0.00019178,2]
[387232727,1758664232937,-489.85088478,0.00019178,2]
[387232730,1758664232947,-480.0,0.00019178,2]
[387232732,1758664232957,-480.0,0.00019178,2]
[387232735,1758664232966,-480.0,0.00019178,2]
[387232738,1758664232976,-480.0,0.00019178,2]
[387232741,1758664232985,-359.36029261,0.00019178,2]
[387232743,1758664232994,-480.0,0.00019178,2]
[387232745,1758664233003,-480.0,0.00019178,2]
[387232747,1758664233012,-475.45419697,0.00019178,2]
[387232749,1758664233022,-480.0,0.00019178,2]
[387232751,1758664233031,-480.0,0.00019178,2]
[387232753,1758664233040,-480.0,0.00019178,2]